bitfinex/quotes_SOLUSD_20240716
["timestamp","ask_amount","ask_price","bid_price","bid_amount"]
[1721104520691,1.2687546,158.17,158.13,61.92]
[1721104521206,1.2687546,158.17,158.14,16.92]
[1721104521421,1.2687546,158.18,158.15,45.0]
[1721104521710,1.2687546,158.17,158.15,61.92]
[1721104521893,1.2687546,158.17,158.15,45.0]
[1721104522095,23.2415,158.19,158.15,45.0]
[1721104522301,6.3219,158.18,158.15,45.0]
[1721104523007,7.5910546,158.17,158.15,45.0]
[1721104523218,1.2687546,158.17,158.15,45.0]
[1721104523391,1.2687546,158.17,158.14,45.0]
[1721104528412,1.2687546,158.17,158.14,61.92]
[1721104528709,1.2687546,158.19,158.15,16.92]
[1721104528921,1.2687546,158.19,158.16,61.92]
[1721104529092,1.2687546,158.19,158.16,16.92]
[1721104529805,1.2687546,158.2,158.16,16.92]
[1721104530192,1.2687546,158.2,158.17,45.0]
[1721104530714,6.3219,158.18,158.09,25.1966]
[1721104530920,1.2687546,158.17,158.1,84.01]
[1721104531093,1.2687546,158.17,158.14,16.92]
[1721104531293,1.2687546,158.17,158.15,45.0]
[1721104531523,16.92,158.16,158.09,6.1866]
[1721104531711,18.1887546,158.15,158.09,6.1866]
[1721104531913,18.1887546,158.14,158.09,16.92]
[1721104532215,16.92,158.13,158.08,16.92]
[1721104532401,16.92,158.11,158.05,6.128]
[1721104532724,18.1887546,158.11,158.06,16.92]
[1721104533723,1.2687546,158.13,158.07,16.92]
[1721104534032,16.92,158.12,158.08,45.0]
[1721104534191,1.2687546,158.11,158.08,45.0]
[1721104534401,1.2687546,158.13,158.08,45.0]
[1721104535528,7.5926546,158.13,158.08,45.0]
[1721104535696,1.2687546,158.13,158.08,45.0]
[1721104536020,7.5926546,158.13,158.08,45.0]
[1721104536218,1.2687546,158.13,158.08,45.0]
[1721104536817,7.5926546,158.13,158.08,45.0]
[1721104537019,1.2687546,158.13,158.08,45.0]
[1721104541508,7.5927546,158.13,158.08,45.0]
[1721104543527,6.3248,158.11,158.01,25.4228]
[1721104543727,1.2687546,158.1,158.02,1.03475046]
[1721104544616,1.2687546,158.1,158.02,21.03475046]
[1721104545123,6.3243,158.12,158.03,45.0]
[1721104545124,1.2687546,158.09,158.03,45.0]
[1721104545294,1.2687546,158.11,158.04,1.05740138]
[1721104545495,1.2687546,158.1,158.05,1.05733447]
[1721104545901,1.2687546,158.1,158.04,1.24884062]
[1721104546101,1.2687546,158.1,158.05,1.26519366]
[1721104546415,1.2687546,158.11,158.05,1.26519366]
[1721104546609,1.2687546,158.1,158.05,1.26519366]
[1721104547018,1.2687546,158.1,158.04,1.26522911]
[1721104547325,1.2687546,158.1,158.05,1.26522888]
[1721104547629,1.2687546,158.11,158.05,1.26522888]
[1721104547802,1.2687546,158.1,158.05,1.26522888]
[1721104548436,6.3257,158.09,158.04,1.26522871]
[1721104548600,1.2687546,158.08,158.03,45.0]
[1721104548806,6.3258,158.09,158.03,45.0]
[1721104549004,1.2687546,158.08,158.03,45.0]
[1721104549517,1.2687546,158.1,158.03,45.0]
[1721104551004,7.5940546,158.1,158.03,45.0]
[1721104551202,1.2687546,158.09,158.03,45.0]
[1721104551620,7.5944546,158.09,158.02,45.0]
[1721104551915,7.5944546,158.09,158.01,45.0]
[1721104552810,7.5944546,158.09,158.0,45.0]
[1721104555932,7.5942546,158.09,158.0,45.0]
[1721104556228,16.94,158.05,158.0,16.94]
[1721104556399,1.2687546,158.04,158.01,45.0]
[1721104557924,16.94,158.05,158.01,45.0]
[1721104558128,1.2687546,158.04,158.01,45.0]
[1721104559931,1.2687546,158.04,158.01,61.94]
[1721104560133,16.94,158.06,158.01,61.94]
[1721104560134,1.2687546,158.05,158.01,61.94]
[1721104560337,16.5353,158.07,158.03,16.94]
[1721104560515,16.5353,158.07,158.04,45.0]
[1721104560717,17.8040546,158.07,158.04,45.0]
[1721104560931,34.7440546,158.07,158.04,45.0]
[1721104561240,34.7440546,158.07,158.03,45.0]
[1721104561542,1.2687546,158.1,158.03,61.94]
[1721104561738,16.94,158.08,158.03,61.94]
[1721104561914,1.2687546,158.07,158.03,45.0]
[1721104562310,1.2687546,158.07,158.02,16.94]
[1721104562529,16.94,158.07,158.03,45.0]
[1721104562837,1.2687546,158.06,158.03,45.0]
[1721104565411,18.2087546,158.06,158.03,45.0]
[1721104565633,1.2687546,158.05,158.03,45.0]
[1721104565837,16.94,158.06,158.03,45.0]
[1721104566041,1.2687546,158.05,158.02,45.0]
[1721104566337,1.2687546,158.1,158.02,61.94]
[1721104566527,7.5938546,158.1,158.02,61.94]
[1721104567011,1.2687546,158.1,158.04,16.94]
[1721104567217,16.94,158.09,158.04,16.94]
[1721104567417,1.2687546,158.08,158.04,16.94]
[1721104568033,18.2087546,158.08,158.02,45.0]
[1721104568239,1.2687546,158.07,158.02,45.0]
[1721104568426,1.2687546,158.07,158.03,16.94]
[1721104568625,1.2687546,158.07,158.04,45.0]
[1721104569526,18.2087546,158.08,158.04,45.0]
[1721104569846,1.2687546,158.08,158.04,45.0]
[1721104570424,18.2087546,158.08,158.04,45.0]
[1721104570827,24.5346546,158.08,158.04,45.0]
[1721104571126,24.5346546,158.08,157.98,19.01]
[1721104571328,16.94,158.07,157.99,65.0]
[1721104571647,18.2087546,158.06,158.01,16.94]
[1721104572225,18.2087546,158.06,158.0,16.94]
[1721104573026,1.2687546,158.06,158.01,45.0]
[1721104573341,10.0,158.1,158.02,16.94]
[1721104573342,1.2687546,158.07,158.02,16.94]
[1721104573538,16.94,158.08,158.03,61.94]
[1721104573739,1.2687546,158.07,158.03,61.94]
[1721104574444,18.2087546,158.09,158.04,16.94]
[1721104575144,16.94,158.08,158.03,61.94]
[1721104575443,16.94,158.06,157.97,25.256]
[1721104575640,1.2687546,158.05,158.01,16.94]
[1721104575831,1.2687546,158.05,158.02,45.0]
[1721104576031,1.2687546,158.05,158.01,16.94]
[1721104576341,1.2687546,158.05,158.02,45.0]
[1721104578746,1.2687546,158.06,158.02,61.94]
[1721104578939,1.2687546,158.07,158.03,16.94]
[1721104579140,1.2687546,158.09,158.04,16.94]
[1721104580554,1.2687546,158.1,158.06,16.94]
[1721104580935,1.2687546,158.1,158.05,45.0]
[1721104581238,1.2687546,158.1,158.06,16.94]
[1721104581442,17.8040546,158.11,158.06,18.08641026]
[1721104581748,1.2687546,158.1,158.06,18.08641026]
[1721104581922,34.7440546,158.11,158.06,18.08641026]
[1721104582127,17.8040546,158.11,158.07,16.94]
[1721104582827,16.56702533,158.18,158.05,45.0]
[1721104582828,17.5181546,158.15,158.09,16.94]
[1721104583026,17.5181546,158.15,158.1,45.0]
[1721104583027,16.94,158.14,158.1,45.0]
[1721104583249,1.2687546,158.13,158.1,61.94]
[1721104583756,16.94,158.12,158.07,16.94]
[1721104583930,7.5934546,158.11,158.03,6.2477]
[1721104584130,18.2087546,158.1,158.05,16.94]
[1721104584426,18.2087546,158.1,158.06,45.0]
[1721104585650,1.2687546,158.09,158.06,45.0]
[1721104586039,1.2687546,158.1,158.06,45.0]
[1721104586351,18.2087546,158.1,158.06,45.0]
[1721104587556,1.2687546,158.1,158.06,45.0]
[1721104589151,1.2687546,158.1,158.06,61.94]
[1721104589950,18.2087546,158.1,158.06,45.0]
[1721104593247,1.2687546,158.1,158.06,45.0]
[1721104594071,16.0221,158.09,158.0,6.4891]
[1721104594235,6.3263,158.07,157.97,15.9683]
[1721104594558,1.2687546,158.06,157.97,15.9683]
[1721104595063,1.2687546,158.06,157.97,34.9783]
[1721104595434,1.2687546,158.07,157.98,21.19310509]
[1721104595638,1.2687546,158.07,157.99,1.19302957]
[1721104595965,1.2687546,158.07,157.98,39.01]
[1721104596342,1.2687546,158.08,157.98,39.01]
[1721104596540,1.2687546,158.07,157.99,64.01]
[1721104596859,1.2687546,158.07,158.0,20.0]
[1721104597039,1.2687546,158.07,158.01,45.0]
[1721104597236,1.2687546,158.08,158.01,45.0]
[1721104597541,17.2908546,158.09,158.01,45.0]
[1721104598958,16.0221,158.09,158.01,64.01]
[1721104599157,16.0221,158.09,158.02,20.0]
[1721104599356,16.0221,158.09,158.03,45.0]
[1721104599755,21.5291,158.13,158.03,45.0]
[1721104599939,1.2687546,158.12,158.03,45.0]
[1721104600138,7.5931546,158.12,158.03,45.0]
[1721104600338,7.5931546,158.12,158.04,1.26247054]
[1721104600757,1.2687546,158.12,158.03,64.01]
[1721104601040,1.2687546,158.12,158.04,1.2635241]
[1721104601535,1.2687546,158.12,158.03,64.01]
[1721104601536,6.3247,158.11,158.03,64.01]
[1721104601740,1.2687546,158.1,158.03,64.01]
[1721104602351,1.2687546,158.1,157.98,19.01]
[1721104602544,22.4232,158.09,157.99,20.0]
[1721104602743,1.2687546,158.08,157.99,20.0]
[1721104602962,1.2687546,158.07,157.98,19.01]
[1721104603155,7.5950546,158.07,157.98,19.01]
[1721104604154,7.5950546,158.07,157.97,22.1891]
[1721104604450,6.3268,158.06,157.98,20.0]
[1721104604649,1.2687546,158.05,157.98,20.0]
[1721104605446,1.2687546,158.04,157.95,20.0]
[1721104605649,1.2687546,158.04,157.94,19.01]
[1721104606067,1.2687546,158.04,157.93,6.457]
[1721104606068,6.328,158.03,157.93,25.467]
[1721104606276,15.7915,158.01,157.93,6.457]
[1721104606446,17.0602546,158.01,157.92,22.72392845]
[1721104606653,17.0602546,158.01,157.92,16.1628]
[1721104607154,23.3889546,158.01,157.9,19.01]
[1721104607357,17.0602546,158.01,157.9,19.01]
[1721104608446,17.0602546,158.01,157.91,39.01]
[1721104608970,17.0602546,158.01,157.92,0.83959193]
[1721104609590,17.0602546,158.01,157.93,19.01]
[1721104609757,17.0602546,158.01,157.94,45.0]
[1721104609946,17.0602546,158.01,157.95,0.83943245]
[1721104610143,15.7915,158.05,157.95,19.01]
[1721104610345,1.2687546,158.04,157.96,45.0]
[1721104610564,1.2687546,158.04,157.96,46.26562069]
[1721104611682,17.0602546,158.05,157.97,20.0]
[1721104611977,17.0602546,158.05,157.98,46.26546055]
[1721104612157,17.0602546,158.05,157.99,1.26538045]
[1721104612555,15.7915,158.05,157.99,1.26538045]
[1721104612755,15.7915,158.05,157.99,40.27538045]
[1721104612953,15.7915,158.09,158.0,45.0]
[1721104613154,7.5947546,158.08,158.01,1.26522028]
[1721104613360,7.5947546,158.08,158.02,1.26514021]
[1721104614962,6.3266,158.07,158.0,45.0]
[1721104615263,1.2687546,158.06,158.0,45.0]
[1721104615462,7.5953546,158.07,158.0,45.0]
[1721104615978,6.327,158.06,158.0,45.0]
[1721104616151,7.5958546,158.05,158.0,45.0]
[1721104616567,6.3275,158.04,158.0,45.0]
[1721104616961,6.3269,158.06,158.0,45.0]
[1721104617161,6.3275,158.04,157.95,15.0933]
[1721104617468,1.2687546,158.03,157.95,15.0933]
[1721104618466,1.2687546,158.03,157.96,20.0]
[1721104619056,1.2687546,158.03,157.97,0.81699508]
[1721104620081,1.2687546,158.03,157.97,45.0]
[1721104620660,6.3269,158.06,157.98,1.26228219]
[1721104620860,1.2687546,158.05,157.98,1.26228219]
[1721104621073,1.2687546,158.05,157.97,45.0]
[1721104621290,7.5962546,158.04,157.97,45.0]
[1721104621766,22.1194,158.03,157.97,45.0]
[1721104621968,1.2687546,158.02,157.97,45.0]
[1721104624079,15.7915,158.03,157.97,64.01]
[1721104624266,15.6701,158.07,157.98,20.0]
[1721104624465,1.2687546,158.06,157.99,45.0]
[1721104625858,15.6701,158.07,157.99,45.0]
[1721104626055,16.9388546,158.07,158.0,20.0]
[1721104626360,16.9388546,158.07,158.01,46.26276638]
[1721104627361,23.2651546,158.07,158.01,46.26276638]
[1721104627686,16.9388546,158.07,158.01,45.0]
[1721104627978,16.9388546,158.07,157.96,34.6532]
[1721104628188,16.9388546,158.07,157.97,65.0]
[1721104628572,6.3272,158.05,157.97,65.0]
[1721104628757,1.2687546,158.04,157.97,65.0]
[1721104628961,1.2687546,158.05,157.97,84.01]
[1721104629783,7.5962546,158.04,157.97,20.0]
[1721104631075,7.5962546,158.04,157.98,45.0]
[1721104631283,1.2687546,158.04,157.98,45.0]
[1721104631491,1.2687546,158.03,157.98,45.0]
[1721104631791,6.3271,158.05,157.98,45.0]
[1721104632768,1.2687546,158.04,157.98,45.0]
[1721104632965,1.2687546,158.06,157.98,45.0]
[1721104634487,1.2687546,158.06,157.98,64.01]
[1721104634685,16.9388546,158.07,157.98,64.01]
[1721104636091,16.9388546,158.07,157.98,45.0]
[1721104636494,6.3274,158.05,157.98,45.0]
[1721104636668,16.9388546,158.07,157.98,45.0]
[1721104636669,1.2687546,158.06,157.98,45.0]
[1721104636977,16.9388546,158.07,157.99,20.0]
[1721104637189,16.9388546,158.07,158.0,45.0]
[1721104637795,7.5941546,158.1,158.0,45.0]
[1721104638014,7.5941546,158.1,158.01,20.0]
[1721104638181,7.5941546,158.1,158.02,45.0]
[1721104638375,7.5941546,158.1,158.03,0.76870836]
[1721104639901,7.5941546,158.1,158.03,1.26524028]
[1721104640895,16.5803546,158.11,158.03,1.26524028]
[1721104641207,22.9050546,158.11,158.03,21.26524028]
[1721104641409,22.9050546,158.11,158.04,45.0]
[1721104641607,22.9050546,158.11,158.05,1.26508413]
[1721104642306,1.2687546,158.11,158.05,1.26508413]
[1721104642486,7.5922546,158.14,158.05,55.94088413]
[1721104642679,7.5922546,158.14,158.06,45.0]
[1721104642893,7.5922546,158.14,158.07,1.26487814]
[1721104643196,7.5922546,158.14,158.08,1.26479812]
[1721104644910,22.9034546,158.15,158.08,1.26479812]
[1721104645092,7.5918546,158.15,158.08,1.26479812]
[1721104645292,6.3231,158.15,158.08,1.26479812]
[1721104645493,6.3231,158.15,158.08,46.26479812]
[1721104645699,1.2687546,158.14,158.08,46.26479812]
[1721104646008,7.5922546,158.14,158.08,46.26479812]
[1721104646800,6.3228,158.16,158.08,46.26479812]
[1721104647377,31.1159,158.19,158.08,46.26479812]
[1721104647378,7.5918546,158.15,158.08,46.26479812]
[1721104647808,6.3235,158.14,158.08,46.26479812]
[1721104648485,7.5926546,158.13,158.08,45.0]
[1721104648682,6.3243,158.12,158.07,6.5431]
[1721104648885,1.2687546,158.13,158.07,6.5431]
[1721104649108,1.2687546,158.16,158.07,6.5431]
[1721104649686,17.0755546,158.16,158.05,15.6658]
[1721104650099,6.3243,158.12,158.06,45.0]
[1721104650306,1.2687546,158.11,158.05,15.6658]
[1721104650979,1.2687546,158.12,158.05,15.6658]
[1721104651396,7.5921546,158.15,158.05,34.6758]
[1721104651589,1.2687546,158.14,158.06,65.0]
[1721104653010,1.2687546,158.15,158.06,65.0]
[1721104653212,1.2687546,158.14,158.06,65.0]
[1721104653587,7.5924546,158.14,158.06,65.0]
[1721104654136,6.323,158.16,158.06,84.01]
[1721104654325,1.2687546,158.15,158.06,84.01]
[1721104654501,6.323,158.16,158.06,84.01]
[1721104654688,7.5918546,158.15,158.06,84.01]
[1721104655524,6.3236,158.14,158.06,84.01]
[1721104658309,6.3236,158.14,158.06,65.0]
[1721104658513,1.2687546,158.13,158.06,65.0]
[1721104659783,7.5926546,158.13,158.06,65.0]
[1721104659995,1.2687546,158.12,158.06,65.0]
[1721104661113,7.5927546,158.13,158.06,65.0]
[1721104661284,1.2687546,158.12,158.06,65.0]
[1721104662295,1.2687546,158.14,158.06,65.0]
[1721104662494,1.2687546,158.15,158.06,65.0]
[1721104662702,1.2687546,158.14,158.06,65.0]
[1721104662915,6.3227,158.16,158.06,65.0]
[1721104664019,1.2687546,158.15,158.06,65.0]
[1721104664895,1.2687546,158.14,158.06,65.0]
[1721104665096,1.2687546,158.15,158.06,65.0]
[1721104665297,1.2687546,158.14,158.06,65.0]
[1721104665513,1.2687546,158.15,158.06,65.0]
[1721104665707,7.5909546,158.18,158.07,19.02]
[1721104665914,1.2687546,158.17,158.08,65.0]
[1721104666212,1.2687546,158.17,158.09,6.4836]
[1721104666412,1.2687546,158.17,158.1,45.0]
[1721104667010,1.2687546,158.17,158.11,0.48748509]
[1721104667424,7.5907546,158.18,158.11,0.48748509]
[1721104667706,1.2687546,158.17,158.1,45.0]
[1721104668113,1.2687546,158.17,158.11,0.94147521]
[1721104669002,7.5910546,158.17,158.11,0.94147521]
[1721104675022,6.3228,158.16,158.11,0.94147521]
[1721104676222,6.3231,158.15,158.11,0.94147521]
[1721104676413,6.3231,158.15,158.1,45.0]
[1721104677117,6.3227,158.16,158.1,45.0]
[1721104680799,6.3223,158.17,158.1,45.0]
[1721104681016,6.3223,158.17,158.11,16.5679]
[1721104681216,1.2687546,158.16,158.11,16.5679]
[1721104681412,1.2687546,158.2,158.11,16.5679]
[1721104681614,1.2687546,158.22,158.12,64.02]
[1721104681820,7.5890546,158.22,158.14,6.5062]
[1721104682010,6.3203,158.22,158.15,45.0]
[1721104682535,1.2687546,158.21,158.15,45.0]
[1721104683732,6.3199,158.23,158.16,15.2752]
[1721104684544,6.3197,158.24,158.17,45.0]
[1721104684836,6.3197,158.24,158.18,1.26407529]
[1721104686324,7.5886546,158.23,158.17,45.0]
[1721104688409,1.2687546,158.23,158.17,45.0]
[1721104688605,6.3195,158.25,158.17,45.0]
[1721104688606,1.2687546,158.24,158.17,45.0]
[1721104688834,1.2687546,158.23,158.17,45.0]
[1721104691340,1.2687546,158.25,158.18,0.92287346]
[1721104691667,1.2687546,158.27,158.18,0.92287346]
[1721104691941,1.2687546,158.29,158.2,35.3093]
[1721104692232,7.1255959,158.32,158.21,84.99582633]
[1721104692438,1.2687546,158.31,158.21,84.99582633]
[1721104693139,7.5855546,158.31,158.22,6.1427]
[1721104693332,7.5855546,158.31,158.23,46.26359292]
[1721104694539,6.3171,158.3,158.23,46.26359292]
[1721104694742,0.8089959,158.32,158.24,15.6593]
[1721104695040,0.8089959,158.32,158.25,85.28341559]
[1721104695246,0.8089959,158.32,158.26,25.1744]
[1721104695414,0.8089959,158.32,158.27,65.0]
[1721104698522,0.8089959,158.32,158.28,1.26313592]
[1721104698822,0.8089959,158.32,158.29,16.2605]
[1721104700721,0.8089959,158.32,158.3,1.26315491]
[1721104702241,0.8089959,158.32,158.3,46.26315491]
[1721104702848,0.8089959,158.32,158.26,6.1544]
[1721104703059,0.8089959,158.32,158.27,1.26319928]
[1721104704243,0.8089959,158.32,158.27,21.26319928]
[1721104704448,0.8089959,158.32,158.28,45.0]
[1721104704625,0.8089959,158.32,158.29,1.26303967]
[1721104704947,0.8089959,158.32,158.3,1.26295988]
[1721104706033,0.8089959,158.32,158.3,46.26295988]
[1721104706847,0.8089959,158.32,158.31,15.7659]
[1721104707053,0.8089959,158.32,158.31,60.7659]
[1721104709645,0.8089959,158.32,158.31,15.7659]
[1721104709833,0.8089959,158.32,158.29,20.0]
[1721104710155,0.8089959,158.32,158.3,45.0]
[1721104710330,0.8089959,158.32,158.29,45.0]
[1721104710537,0.8089959,158.32,158.3,20.0]
[1721104710746,0.8089959,158.32,158.27,15.3187]
[1721104711246,0.8089959,158.32,158.28,20.0]
[1721104711956,0.8089959,158.32,158.26,6.1544]
[1721104712131,2.0777505,158.32,158.26,6.1544]
[1721104713333,0.8089959,158.32,158.26,6.1544]
[1721104713534,2.0777505,158.32,158.26,6.1544]
[1721104716543,2.0777505,158.32,158.23,15.3187]
[1721104716744,8.3941505,158.32,158.24,20.0]
[1721104718565,8.3941505,158.32,158.23,15.3187]
[1721104720071,8.3941505,158.32,158.24,20.0]
[1721104724972,8.3941505,158.32,158.23,20.0]
[1721104726155,2.0777505,158.32,158.23,20.0]
[1721104727042,6.3173,158.3,158.23,20.0]
[1721104727270,1.2687546,158.29,158.19,15.1695]
[1721104727446,22.4692,158.28,158.19,15.1695]
[1721104727769,1.2687546,158.27,158.19,15.1695]
[1721104727959,1.2687546,158.26,158.19,15.1695]
[1721104728163,1.2687546,158.27,158.19,15.1695]
[1721104728549,1.2687546,158.27,158.2,45.0]
[1721104730682,1.2687546,158.26,158.18,6.1803]
[1721104730965,1.2687546,158.26,158.19,20.0]
[1721104731178,16.1513,158.28,158.19,20.0]
[1721104731346,1.2687546,158.27,158.19,20.0]
[1721104737373,1.2687546,158.27,158.17,20.0]
[1721104737577,1.2687546,158.27,158.18,45.0]
[1721104737872,1.2687546,158.27,158.19,20.0]
[1721104738168,6.3189,158.26,158.17,20.0]
[1721104738374,1.2687546,158.25,158.16,20.0]
[1721104738584,1.2687546,158.27,158.16,20.0]
[1721104738757,1.2687546,158.26,158.16,20.0]
[1721104739280,1.2687546,158.26,158.17,45.0]
[1721104739467,1.2687546,158.26,158.18,20.0]
[1721104740061,1.2687546,158.27,158.18,20.0]
[1721104740269,1.2687546,158.26,158.15,15.1586]
[1721104740574,1.2687546,158.26,158.16,45.0]
[1721104740958,7.5877546,158.26,158.16,45.0]
[1721104741694,6.3191,158.25,158.17,20.0]
[1721104741855,1.2687546,158.24,158.17,20.0]
[1721104742055,6.3191,158.25,158.17,20.0]
[1721104742056,1.2687546,158.23,158.17,20.0]
[1721104742768,1.2687546,158.23,158.15,20.0]
[1721104744055,1.2687546,158.27,158.16,45.57297133]
[1721104744257,1.2687546,158.26,158.17,20.0]
[1721104744555,7.5878546,158.26,158.17,20.0]
[1721104745162,7.5878546,158.26,158.18,0.57289898]
[1721104745363,7.5878546,158.26,158.17,20.0]
[1721104746704,1.2687546,158.26,158.17,20.0]
[1721104746984,1.2687546,158.25,158.15,20.0]
[1721104747886,1.2687546,158.26,158.15,20.0]
[1721104748485,6.3196,158.24,158.15,20.0]
[1721104748785,1.2687546,158.23,158.15,20.0]
[1721104749307,7.5887546,158.23,158.15,20.0]
[1721104749485,1.2687546,158.22,158.15,20.0]
[1721104750106,1.2687546,158.25,158.15,20.0]
[1721104750406,7.5881546,158.25,158.15,20.0]
[1721104751209,7.5881546,158.25,158.16,45.0]
[1721104751819,1.2687546,158.24,158.16,45.0]
[1721104752677,6.3187,158.26,158.16,45.0]
[1721104752678,1.2687546,158.25,158.16,45.0]
[1721104752983,1.2687546,158.27,158.17,39.02]
[1721104753188,1.2687546,158.27,158.18,45.0]
[1721104753494,1.2687546,158.27,158.19,20.0]
[1721104753802,1.2687546,158.27,158.2,45.0]
[1721104756116,16.1513,158.28,158.2,45.0]
[1721104756409,16.1513,158.28,158.21,20.0]
[1721104756605,16.1513,158.28,158.22,45.0]
[1721104757922,6.317,158.31,158.22,45.0]
[1721104758216,1.2687546,158.3,158.22,45.0]
[1721104759818,7.5858546,158.3,158.22,45.0]
[1721104760115,6.3171,158.3,158.22,45.0]
[1721104760790,7.5855546,158.31,158.22,45.0]
[1721104761700,7.5855546,158.31,158.23,20.0]
[1721104762013,7.5855546,158.31,158.24,45.0]
[1721104762916,23.7620505,158.32,158.24,45.0]
[1721104763293,23.7620505,158.32,158.24,45.94721972]
[1721104763793,23.7620505,158.32,158.25,20.0]
[1721104763794,0.8089959,158.32,158.25,20.0]
[1721104764003,0.8089959,158.32,158.26,45.94710001]
[1721104764194,0.8089959,158.32,158.26,45.0]
[1721104765705,0.8089959,158.32,158.26,51.1481]
[1721104765912,0.8089959,158.32,158.27,15.3655]
[1721104766224,0.8089959,158.32,158.28,45.0]
[1721104769218,0.8089959,158.32,158.29,1.26308718]
[1721104769918,0.8089959,158.32,158.29,21.26308718]
[1721104770925,0.8089959,158.32,158.3,45.0]
[1721104771104,0.8089959,158.32,158.31,1.2629276]
[1721104778537,0.8089959,158.32,158.31,21.2629276]
[1721104778698,0.8089959,158.32,158.31,66.2629276]
[1721104780609,0.8089959,158.32,158.31,65.0]
[1721104781521,0.8089959,158.32,158.31,20.0]
[1721104781714,0.8089959,158.32,158.29,20.0]
[1721104782031,0.8089959,158.32,158.3,45.0]
[1721104782203,0.8089959,158.32,158.31,20.0]
[1721104783902,0.8089959,158.32,158.27,15.3655]
[1721104784442,0.8089959,158.32,158.24,19.02]
[1721104785016,0.8089959,158.32,158.26,25.1681]
[1721104785217,0.8089959,158.32,158.27,20.0]
[1721104785540,0.8089959,158.32,158.28,45.0]
[1721104785742,0.8089959,158.32,158.29,20.0]
[1721104788033,0.8089959,158.32,158.3,46.26309862]
[1721104790811,0.8089959,158.32,158.31,20.0]
[1721104791036,0.8089959,158.32,158.31,65.0]
[1721104792246,0.8089959,158.32,158.31,84.02]
[1721104794943,0.8089959,158.32,158.31,90.5115]
[1721104798258,0.44490509,158.32,158.31,90.5115]
[1721104801718,0.11579988,158.32,158.31,90.5115]
[1721104802455,0.11579988,158.32,158.31,70.5115]
[1721104802632,0.11579988,158.32,158.29,34.0823]
[1721104803035,0.11579988,158.32,158.27,6.511]
[1721104803439,0.11579988,158.32,158.25,15.83]
[1721104803644,0.11579988,158.32,158.26,19.02]
[1721104805653,0.11579988,158.32,158.28,19.02]
[1721104805954,0.11579988,158.32,158.3,19.02]
[1721104806250,0.11579988,158.32,158.31,84.02]
[1721104807235,0.11579988,158.32,158.31,99.1222]
[1721104809454,0.11579988,158.32,158.31,84.02]
[1721104812153,0.11579988,158.32,158.31,65.0]
[1721104812735,0.11579988,158.32,158.31,20.0]
[1721104813037,0.11579988,158.32,158.29,39.02]
[1721104814063,0.11579988,158.32,158.3,45.0]
[1721104814251,0.11579988,158.32,158.31,20.0]
[1721104814452,0.11579988,158.32,158.31,65.0]
[1721104815542,0.11579988,158.32,158.31,20.0]
[1721104815858,0.11579988,158.32,158.29,20.0]
[1721104816060,0.11579988,158.32,158.3,45.0]
[1721104816242,0.11579988,158.32,158.31,20.0]
[1721104817836,0.11579988,158.32,158.31,21.26295448]
[1721104818037,0.11579988,158.32,158.31,66.26295448]
[1721104819542,0.11579988,158.32,158.31,65.0]
[1721104823555,0.11579988,158.32,158.31,84.02]
[1721104825658,0.11579988,158.32,158.31,85.28254092]
[1721104826572,0.11579988,158.32,158.31,84.02]
[1721104827763,0.11579988,158.32,158.31,84.36937729]
[1721104828563,0.11579988,158.32,158.31,84.02]
[1721104830778,0.11579988,158.32,158.31,84.35879385]
[1721104831786,0.11579988,158.32,158.31,84.02]
[1721104836970,0.11579988,158.32,158.31,84.90000229]
[1721104837157,0.11579988,158.32,158.31,85.2825782]
[1721104840088,0.11579988,158.32,158.31,84.02]
[1721104840463,0.11579988,158.32,158.31,85.28255214]